bitfinex/quotes_ETHUSD_20251120
["timestamp","ask_amount","ask_price","bid_price","bid_amount"]
[1763614841709,0.9896,3054.3,3053.9,0.001]
[1763614841888,0.4934,3054.2,3054.0,0.111]
[1763614842275,0.4962,3054.1,3053.9,0.001]
[1763614842694,0.4962,3054.1,3054.0,0.111]
[1763614842923,0.4962,3054.1,3053.9,0.001]
[1763614842924,0.4962,3054.0,3053.9,0.001]
[1763614843293,0.9896,3054.0,3053.9,0.001]
[1763614843494,0.9896,3054.0,3053.9,0.112]
[1763614844115,0.9896,3054.0,3053.9,0.001]
[1763614844331,4.69038889,3054.0,3053.9,0.001]
[1763614846987,0.9896,3054.0,3053.9,0.001]
[1763614847786,4.26399423,3054.0,3053.9,0.001]
[1763614848943,4.26399423,3054.0,3052.8,0.001]
[1763614849122,0.4962,3053.3,3052.8,3.27664992]
[1763614849331,0.4962,3053.3,3052.8,0.001]
[1763614849518,0.4934,3053.6,3052.8,0.001]
[1763614850811,0.4934,3053.6,3052.9,0.111]
[1763614851431,0.4934,3053.8,3053.0,6.5509335]
[1763614851836,0.1934,3053.9,3053.1,0.3871]
[1763614852341,0.6868,3053.9,3053.1,0.0957]
[1763614852702,0.6868,3053.9,3053.1,0.3871]
[1763614853420,0.6868,3053.9,3053.2,6.55050438]
[1763614853824,0.4934,3053.8,3053.2,6.55050438]
[1763614854024,0.4934,3053.8,3053.3,0.111]
[1763614854611,0.4934,3053.8,3053.4,0.111]
[1763614855037,0.4962,3053.5,3053.4,0.111]
[1763614855414,0.4934,3053.8,3053.4,0.111]
[1763614855937,3.27385824,3054.5,3053.4,0.111]
[1763614856152,0.4934,3054.3,3053.4,0.111]
[1763614857163,0.33867789,3054.5,3053.4,0.111]
[1763614857316,0.002,3054.6,3053.4,0.111]
[1763614857317,0.4934,3054.4,3053.4,0.111]
[1763614857637,0.4934,3054.4,3053.5,10.16346909]
[1763614857941,0.002,3054.6,3053.5,10.16346909]
[1763614858107,0.002,3054.6,3053.6,0.90699264]
[1763614858303,0.002,3054.6,3053.6,1.19839264]
[1763614858537,3.76569762,3054.8,3053.7,0.2914]
[1763614858738,3.99592947,3054.8,3053.6,0.90699264]
[1763614858939,7.26950202,3054.8,3053.6,0.90699264]
[1763614859515,3.99592947,3054.8,3053.7,6.54943182]
[1763614859715,7.26950202,3054.8,3053.8,0.111]
[1763614860529,0.4934,3054.7,3053.8,0.111]
[1763614860746,1.2881302,3054.7,3053.8,0.111]
[1763614861123,0.4934,3054.6,3053.8,0.111]
[1763614861327,6.5471451,3054.8,3053.8,0.111]
[1763614861554,0.4934,3054.7,3053.9,6.5490029]
[1763614861765,7.04069532,3054.7,3054.0,0.111]
[1763614862047,0.4962,3054.1,3053.2,6.55050438]
[1763614862250,0.4962,3054.0,3053.3,0.111]
[1763614862423,0.6868,3053.9,3053.3,0.111]
[1763614862830,0.4934,3053.8,3053.3,0.111]
[1763614863129,0.4962,3053.4,3053.3,0.111]
[1763614863338,0.4962,3053.4,3053.2,3.27525219]
[1763614863644,0.4962,3053.4,3053.3,0.111]
[1763614863973,0.4934,3053.8,3053.3,0.111]
[1763614864140,0.4934,3053.8,3053.2,6.55050438]
[1763614864344,0.4934,3053.8,3053.4,0.111]
[1763614864861,0.1934,3053.9,3053.4,0.111]
[1763614865166,0.6868,3053.9,3053.4,0.111]
[1763614865368,0.4934,3054.2,3053.4,0.111]
[1763614865555,0.87015575,3054.2,3053.4,0.111]
[1763614866151,0.4934,3054.1,3053.5,3.2749304]
[1763614866331,0.4934,3054.1,3053.5,3.3859304]
[1763614866747,0.6896,3053.6,3053.5,3.3859304]
[1763614867629,1.183,3053.6,3053.0,3.27544788]
[1763614867848,0.4962,3053.4,3053.0,3.27544788]
[1763614868049,0.4962,3053.0,3052.8,0.001]
[1763614868231,0.4962,3053.0,3052.9,0.111]
[1763614868660,0.4749,3053.3,3052.9,0.111]
[1763614868862,0.4744,3053.0,3052.9,0.111]
[1763614869387,0.4749,3053.3,3052.9,0.111]
[1763614870158,0.6683,3053.6,3053.0,3.27546675]
[1763614870482,0.1934,3053.6,3053.0,6.5509335]
[1763614870639,0.1934,3053.6,3053.0,3.38646675]
[1763614870835,0.1937,3053.9,3053.1,0.097]
[1763614871036,0.4749,3054.1,3053.1,0.3897]
[1763614871565,0.4749,3054.1,3053.1,0.097]
[1763614871772,0.4749,3054.4,3053.2,4.24151836]
[1763614872094,0.4749,3054.3,3053.2,4.24151836]
[1763614872441,0.4749,3054.3,3053.3,6.55028984]
[1763614872749,0.1937,3054.9,3054.2,0.3905]
[1763614872950,0.1937,3055.5,3054.8,0.2927]
[1763614873168,0.1937,3055.5,3054.9,0.111]
[1763614874063,0.04091117,3055.4,3055.0,0.111]
[1763614874242,0.1937,3055.5,3055.0,0.111]
[1763614874442,0.4749,3055.8,3055.1,6.64423054]
[1763614874738,0.8680553,3055.8,3055.1,6.64423054]
[1763614875139,0.4744,3055.2,3055.0,3.38428581]
[1763614875437,0.3931553,3055.8,3055.0,6.65760823]
[1763614875658,0.3931553,3055.8,3055.1,0.0978]
[1763614875881,0.1844,3055.9,3055.1,0.0978]
[1763614876169,0.1844,3055.9,3055.1,0.3905]
[1763614876469,0.1844,3055.9,3055.2,6.54621628]
[1763614877258,0.6686,3056.1,3055.2,6.54621628]
[1763614878067,0.002,3055.8,3055.2,6.54621628]
[1763614879163,0.002,3055.8,3055.2,9.81932442]
[1763614879378,0.002,3055.8,3055.7,0.2927]
[1763614879543,0.002,3055.8,3055.7,0.4037]
[1763614880162,0.002,3055.8,3055.7,0.2927]
[1763614880363,0.002,3055.8,3055.7,0.4037]
[1763614880576,0.002,3055.8,3055.4,3.27282211]
[1763614880577,0.4764,3055.8,3055.4,3.27282211]
[1763614880961,0.4764,3055.8,3055.5,0.111]
[1763614881356,0.4764,3055.8,3055.6,0.111]
[1763614881562,0.002,3055.8,3055.6,0.111]
[1763614881996,0.002,3055.8,3055.7,0.2927]
[1763614882188,0.002,3055.8,3055.7,0.111]
[1763614882558,0.002,3055.8,3055.4,6.545716]
[1763614882758,0.002,3055.8,3055.5,0.111]
[1763614882964,0.002,3055.8,3055.6,0.111]
[1763614883280,0.002,3055.8,3055.7,0.2927]
[1763614883784,0.002,3055.8,3055.7,0.111]
[1763614884516,0.002,3055.8,3055.7,0.4037]
[1763614884706,0.002,3055.8,3055.7,3.67627256]
[1763614887604,0.002,3055.8,3055.7,3.96897256]
[1763614888153,0.002,3055.8,3055.7,4.8759652]
[1763614888387,0.002,3055.8,3055.7,5.10239092]
[1763614889157,0.002,3055.8,3055.7,4.9586652]
[1763614889689,0.002,3055.8,3055.7,4.7649652]
[1763614889868,0.002,3055.8,3055.7,4.8759652]
[1763614890980,0.002,3055.8,3055.7,4.4722652]
[1763614891383,0.002,3055.8,3055.7,4.5832652]
[1763614891688,0.002,3055.8,3055.7,4.8759652]
[1763614892772,0.002,3055.8,3055.7,4.5832652]
[1763614892999,0.002,3055.8,3055.7,4.4722652]
[1763614893202,0.002,3055.8,3055.7,4.5832652]
[1763614893360,0.002,3055.8,3055.7,4.8759652]
[1763614893763,0.002,3055.8,3055.7,4.5832652]
[1763614893996,0.002,3055.8,3055.7,4.8759652]
[1763614894197,0.002,3055.8,3055.7,3.27257256]
[1763614894695,0.002,3055.8,3055.7,3.38357256]
[1763614894883,0.002,3055.8,3055.7,3.27257256]
[1763614895078,0.002,3055.8,3055.7,3.38357256]
[1763614895289,0.002,3055.8,3055.7,3.27257256]
[1763614895681,0.002,3055.8,3055.7,3.38357256]
[1763614895992,0.002,3055.8,3055.7,3.67627256]
[1763614896192,0.002,3055.8,3055.7,3.38357256]
[1763614897195,0.4532,3055.8,3055.7,3.38357256]
[1763614897769,0.9103,3055.8,3055.6,3.27264434]
[1763614897973,0.4591,3055.8,3055.7,0.111]
[1763614898174,0.002,3055.8,3055.7,0.111]
[1763614898375,0.4623,3055.8,3055.6,3.27264434]
[1763614898576,0.4603,3055.7,3054.8,0.001]
[1763614898772,0.4603,3055.6,3054.9,3.38442768]
[1763614898966,0.4603,3055.6,3054.9,6.65785725]
[1763614899163,0.4897,3055.5,3054.9,6.65785725]
[1763614899384,0.4603,3055.0,3054.9,3.38442768]
[1763614899586,0.4603,3055.0,3054.9,3.27342768]
[1763614899791,0.4603,3055.0,3054.9,3.38442768]
[1763614900094,0.4897,3055.3,3054.9,6.65785725]
[1763614900267,0.4603,3055.0,3054.9,3.38442768]
[1763614900475,0.4897,3055.3,3054.9,6.65785725]
[1763614900697,0.4603,3055.0,3054.8,0.001]
[1763614900867,0.5425,3054.9,3054.8,0.001]
[1763614901065,0.5425,3054.9,3054.8,0.112]
[1763614901295,1.0322,3054.9,3054.8,0.112]
[1763614902465,1.0322,3054.9,3054.8,0.001]
[1763614904285,0.1876,3055.1,3054.8,0.001]
[1763614904602,0.6773,3055.1,3054.9,0.111]
[1763614905106,0.4603,3055.0,3054.9,3.38442957]
[1763614905275,0.4603,3055.0,3054.8,3.27447321]
[1763614905475,0.1876,3055.1,3054.9,0.111]
[1763614905868,0.4603,3055.0,3054.9,0.111]
[1763614906065,0.95,3055.0,3054.9,0.111]
[1763614906263,0.4603,3055.0,3054.8,0.112]
[1763614906499,0.1876,3055.1,3054.8,3.38553672]
[1763614906701,0.4603,3054.9,3054.8,3.38553672]
[1763614908173,0.4603,3054.9,3054.8,0.112]
[1763614908502,0.1876,3055.1,3054.8,3.38553672]
[1763614908705,0.4603,3054.9,3054.8,3.27453672]
[1763614909000,0.4603,3054.9,3054.8,3.38553672]
[1763614909203,0.1828,3055.9,3054.8,6.95177344]
[1763614909409,0.4897,3055.6,3054.9,0.2927]
[1763614909577,0.4897,3055.6,3055.0,0.111]
[1763614909782,3.27278677,3055.5,3055.0,0.111]
[1763614909978,0.4603,3055.1,3054.9,3.27342564]
[1763614910203,0.4603,3055.0,3054.9,3.27342564]
[1763614910409,0.4603,3055.0,3054.9,3.38442564]
[1763614910775,0.95,3055.0,3054.9,3.38442564]
[1763614911504,0.95,3055.0,3054.8,0.001]
[1763614911813,1.0442,3054.9,3054.8,0.001]
[1763614912117,1.0442,3054.9,3054.8,0.112]
[1763614912314,1.0442,3054.9,3054.8,0.001]
[1763614913383,4.31762957,3054.9,3054.8,0.001]
[1763614914210,4.35854743,3054.9,3054.8,0.001]
[1763614914523,4.31762957,3054.9,3054.8,0.001]
[1763614915622,4.31962957,3054.9,3054.8,0.001]
[1763614915921,1.0462,3054.9,3054.8,0.001]
[1763614916420,4.31962957,3054.9,3054.8,0.001]
[1763614916598,4.75159253,3054.9,3054.8,0.001]
[1763614918784,0.98846296,3054.9,3054.8,0.001]
[1763614919022,1.0462,3054.9,3054.8,0.001]
[1763614919223,0.5565,3054.9,3054.8,0.001]
[1763614919598,1.0462,3054.9,3054.8,0.001]
[1763614919998,0.002,3054.9,3054.8,0.001]
[1763614920210,0.002,3054.9,3054.8,0.4047]
[1763614921449,0.4623,3054.9,3054.8,0.112]
[1763614921749,0.6499,3054.9,3054.8,0.112]
[1763614921900,1.1396,3054.9,3054.8,0.112]
[1763614922253,0.002,3054.9,3054.8,3.38553672]
[1763614925138,0.6499,3054.9,3054.8,3.38553672]
[1763614925907,1.1396,3054.9,3054.8,0.001]
[1763614926540,1.58089868,3054.9,3054.8,0.001]
[1763614926741,4.41302957,3054.9,3054.8,0.001]
[1763614928049,9.82095893,3054.9,3054.8,0.001]
[1763614928270,1.31449664,3054.9,3054.8,0.3915]
[1763614928568,0.002,3055.3,3054.9,0.90699264]
[1763614928768,0.002,3055.3,3055.2,0.2927]
[1763614929072,0.002,3055.3,3055.2,2.31078392]
[1763614929226,0.002,3055.3,3055.0,2.31078392]
[1763614929227,0.9612,3055.3,3055.0,2.31078392]
[1763614929710,0.4944,3055.1,3054.8,2.31178392]
[1763614930052,0.4944,3055.1,3054.8,0.001]
[1763614930344,0.9592,3055.1,3054.8,3.27453672]
[1763614930721,0.5371,3054.9,3054.8,0.001]
[1763614930933,0.57801786,3054.9,3054.8,0.001]
[1763614931135,1.0019,3054.9,3054.8,0.001]
[1763614931562,0.405504,3054.8,3054.4,0.001]
[1763614931715,0.4944,3054.5,3054.4,0.001]
[1763614932127,4.23305824,3054.5,3054.4,0.001]
[1763614932532,0.9592,3054.5,3054.4,0.001]
[1763614932743,4.23305824,3054.5,3054.4,0.001]
[1763614933252,0.9592,3054.5,3054.4,0.001]
[1763614933639,4.23305824,3054.5,3054.4,0.001]
[1763614933952,4.68569314,3054.5,3054.4,0.001]
[1763614934616,5.99818978,3054.5,3054.4,0.001]
[1763614934817,5.99818978,3054.5,3053.5,0.001]
[1763614934818,0.405504,3054.1,3053.5,0.001]
[1763614935019,1.086404,3053.6,3053.5,0.001]
[1763614935219,1.086404,3053.6,3052.8,0.001]
[1763614935220,0.405504,3053.5,3052.8,0.001]
[1763614935414,0.4944,3053.2,3052.8,0.001]
[1763614935649,0.6064,3053.2,3052.8,0.001]
[1763614935947,1.0712,3053.2,3052.8,0.001]
[1763614936654,4.34645219,3053.2,3052.8,0.001]
[1763614937750,1.0712,3053.2,3052.8,0.001]
[1763614938553,1.52246868,3053.2,3052.8,0.001]
[1763614938934,1.0712,3053.2,3052.8,0.001]
[1763614939150,0.9592,3053.2,3052.8,0.001]
[1763614939449,0.6064,3053.2,3052.8,0.001]
[1763614939627,1.0712,3053.2,3052.8,0.001]
[1763614939832,4.34645219,3053.2,3052.8,0.001]
[1763614940058,1.84998989,3053.2,3052.8,0.001]
[1763614940958,5.12524208,3053.2,3052.8,0.001]
[1763614941343,5.12524208,3053.2,3051.9,3.57130186]
[1763614941344,0.405504,3052.4,3051.3,2.88709842]
[1763614941547,0.112,3052.3,3051.3,10.57436093]
[1763614941758,0.112,3052.2,3051.3,7.29706929]
[1763614941927,0.4648,3052.3,3051.3,7.29706929]
[1763614942125,0.112,3052.2,3051.1,0.2947]
[1763614942332,0.4648,3052.1,3051.1,3.27747952]
[1763614942629,3.27653997,3052.0,3051.1,6.55498599]
[1763614942831,3.27653997,3052.0,3051.1,3.27747952]
[1763614942832,3.9895079,3052.0,3051.1,3.27747952]
[1763614943026,0.189,3051.9,3051.1,6.55498599]
[1763614943247,0.6538,3051.9,3051.1,6.55498599]
[1763614943826,0.6538,3051.9,3051.1,3.27747952]
[1763614944031,0.6538,3051.9,3051.1,6.55498599]
[1763614944231,0.5768,3051.8,3051.1,3.27747952]
[1763614944552,0.5768,3051.8,3050.5,0.2947]
[1763614944553,0.5768,3051.8,3050.6,3.38993808]
[1763614944754,0.112,3051.7,3050.8,9.83348628]
[1763614944954,0.112,3051.7,3050.8,6.55565752]
[1763614945266,0.112,3051.7,3050.9,0.2947]
[1763614945570,0.112,3051.8,3050.9,0.2947]
[1763614945767,3.9304545,3051.9,3050.9,0.2947]
[1763614945937,0.5768,3051.8,3050.8,6.55565752]
[1763614946130,0.5768,3051.8,3050.8,3.27782876]
[1763614946370,0.5768,3051.8,3050.7,7.29775913]
[1763614946371,0.6834,3050.9,3050.2,3.27847354]
[1763614946671,3.74158162,3051.8,3050.4,6.55651716]
[1763614946852,3.74158162,3051.8,3050.8,0.2947]
[1763614946853,0.58425674,3051.7,3050.8,0.2947]
[1763614947038,1.05615674,3051.7,3050.5,4.01983783]
[1763614947460,0.4719,3051.6,3050.5,4.01983783]
[1763614947635,0.4719,3051.6,3050.4,3.27825858]
[1763614947850,0.405504,3051.5,3050.1,3.27955293]
[1763614948051,0.405504,3051.5,3050.1,0.001]
[1763614948238,0.405504,3051.3,3050.1,3.27956354]
[1763614948441,0.112,3051.2,3050.1,3.27956354]
[1763614948955,0.4719,3051.1,3050.1,6.55814457]
[1763614949159,0.85802997,3051.1,3050.1,3.27956354]
[1763614949332,0.85802997,3051.1,3050.1,0.001]
[1763614949537,0.4719,3051.0,3050.1,0.001]
[1763614949954,0.1861,3050.9,3050.1,0.001]
[1763614950265,0.4611,3050.2,3050.1,0.001]
[1763614950461,0.112,3050.5,3050.1,0.001]
[1763614950965,0.4611,3050.2,3050.1,0.001]
[1763614951156,0.5839,3050.5,3050.1,0.001]
[1763614951376,0.8580868,3050.5,3050.1,0.001]
[1763614951572,0.5839,3050.5,3050.1,0.001]
[1763614951971,0.4719,3050.4,3050.1,0.001]
[1763614952491,0.4611,3050.2,3050.1,0.001]
[1763614952888,0.933,3050.2,3050.1,0.001]
[1763614953902,0.4611,3050.2,3050.1,0.001]
[1763614954285,0.933,3050.2,3050.1,0.001]
[1763614954595,1.3653367,3050.2,3050.1,0.001]
[1763614954796,0.933,3050.2,3050.1,0.001]
[1763614955598,1.045,3050.2,3050.1,0.001]
[1763614955968,4.32347354,3050.2,3050.1,0.001]
[1763614956197,1.045,3050.2,3050.1,0.001]
[1763614957791,0.4611,3050.2,3050.1,0.001]
[1763614958570,0.112,3050.4,3050.1,0.001]
[1763614959181,0.112,3050.5,3050.1,0.001]
[1763614959593,0.5672,3050.5,3050.1,0.001]
[1763614960394,0.4552,3050.5,3050.1,0.001]
[1763614960601,3.27801141,3050.7,3050.1,0.001]
[1763614960786,0.76758449,3050.6,3050.1,0.001]
[1763614961176,1.22278449,3050.6,3050.1,0.001]
[1763614961675,0.1861,3050.9,3050.1,0.001]
[1763614962172,0.112,3050.8,3050.1,0.2957]
[1763614962706,0.112,3051.0,3050.1,0.4077]
[1763614962919,0.112,3051.2,3050.8,0.2947]
[1763614963410,0.6509,3051.4,3050.8,0.2947]
[1763614963588,0.112,3051.3,3050.8,0.2947]
[1763614963996,0.5672,3051.3,3050.8,3.5724866]
[1763614964189,0.4552,3052.1,3051.2,0.2947]
[1763614964508,0.4552,3052.1,3051.3,0.2947]
[1763614964722,0.112,3051.8,3051.3,0.2947]
[1763614965128,3.27504881,3053.4,3051.3,4.31453783]
[1763614965325,0.112,3052.0,3050.9,0.2099]
[1763614965527,0.112,3052.0,3051.0,4.31453783]
[1763614966027,0.112,3051.9,3051.1,10.12721941]
[1763614966226,0.1957,3051.8,3051.1,6.55501294]
[1763614966433,0.112,3052.0,3051.1,6.84971294]
[1763614967135,0.1957,3051.9,3051.1,6.84971294]
[1763614967511,0.1957,3051.9,3051.1,14.14705724]
[1763614967718,0.1957,3051.9,3050.9,0.2099]
[1763614967906,0.4552,3051.8,3050.9,3.48755727]
[1763614968111,0.4552,3051.8,3050.9,6.76527859]
[1763614968112,0.85914759,3051.8,3050.9,6.76527859]
[1763614968313,4.13593458,3051.8,3050.9,6.76527859]
[1763614968607,0.85914759,3051.8,3050.9,6.76527859]
[1763614969137,0.85914759,3051.8,3050.9,7.05997859]
[1763614969336,0.40394759,3051.8,3051.1,4.01983783]
[1763614969518,0.3077,3051.9,3051.1,4.01983783]
[1763614969709,0.7629,3051.9,3051.1,4.01983783]
[1763614970110,0.4552,3051.8,3051.2,3.27739905]
[1763614970655,0.4552,3051.8,3051.0,6.55522778]
[1763614970850,0.85915615,3051.8,3051.0,6.55522778]
[1763614971311,0.4552,3051.7,3051.0,3.27761389]
[1763614971511,0.4552,3051.7,3051.0,6.55522778]
[1763614971949,0.112,3051.8,3051.0,6.84992778]
[1763614972842,0.1957,3051.9,3051.0,6.84992778]
[1763614973224,0.6509,3051.9,3051.0,6.84992778]
[1763614973425,0.6509,3051.9,3051.1,4.01983783]
[1763614974374,3.27624341,3052.3,3051.1,4.01983783]
[1763614974375,0.405504,3052.3,3051.3,0.90699264]
[1763614974659,0.4552,3052.2,3051.3,1.01799264]
[1763614974862,0.4552,3052.2,3051.0,3.27761389]
[1763614975065,0.111,3052.1,3051.1,0.2947]
[1763614975551,0.4552,3052.0,3051.0,10.57506561]
[1763614975963,0.1957,3051.9,3051.0,10.57506561]
[1763614976141,0.1957,3051.9,3051.0,13.8526795]
[1763614976458,0.6509,3051.9,3051.0,10.57506561]
[1763614976843,0.1957,3051.9,3051.1,0.90699264]
[1763614977042,0.1957,3051.9,3051.1,1.20169264]
[1763614977722,0.1957,3051.9,3051.2,0.112]
[1763614977918,0.407504,3052.4,3051.2,0.112]
[1763614978124,3.84347829,3052.3,3051.2,0.112]
[1763614978356,3.27643262,3052.1,3051.3,3.27729164]
[1763614978738,0.4552,3052.0,3051.3,6.55458328]
[1763614979155,0.4552,3052.0,3051.3,3.27729164]
[1763614979455,3.27643262,3052.1,3051.3,3.27729164]
[1763614979456,0.112,3052.1,3051.3,3.27729164]
[1763614979976,0.4552,3052.0,3051.3,6.55458328]
[1763614980462,0.1957,3051.9,3051.3,6.55458328]
[1763614981234,0.3077,3051.9,3051.3,6.55458328]
[1763614981731,0.1957,3051.9,3051.3,6.55458328]
[1763614981930,0.3067,3051.9,3051.3,6.55458328]
[1763614982150,1.16573777,3051.9,3051.3,6.55458328]
[1763614982326,1.16573777,3051.9,3051.1,0.90699264]
[1763614982854,0.111,3051.8,3051.1,1.20169264]
[1763614984541,0.111,3051.8,3051.3,0.90699264]
[1763614985456,0.002,3052.4,3051.7,0.2947]
[1763614985620,0.111,3052.3,3051.8,0.2947]
[1763614986127,0.002,3052.4,3051.8,0.2947]
[1763614986327,0.002,3052.4,3051.9,0.2947]
[1763614986627,0.002,3052.4,3052.0,6.55307994]
[1763614987945,0.002,3052.4,3052.1,0.0988]
[1763614988258,0.002,3052.4,3052.3,0.2947]
[1763614988434,0.002,3052.4,3052.3,3.57091793]
[1763614988634,0.002,3052.4,3052.3,4.77261057]
[1763614989962,0.4896,3052.4,3051.9,2.88709842]
[1763614990265,0.002,3052.4,3052.3,0.3935]
[1763614990462,0.002,3052.4,3052.3,3.66971793]
[1763614990631,0.002,3052.4,3052.3,4.57671057]
[1763614991525,0.002,3052.4,3052.3,4.18321057]
[1763614992736,0.9667,3052.4,3051.8,2.88709842]
[1763614992966,0.4876,3052.2,3051.7,6.55372414]
[1763614993143,0.9647,3052.2,3051.8,0.90699264]
[1763614993467,0.002,3052.4,3051.8,4.85698573]
[1763614994663,0.002,3052.4,3052.0,3.27653997]
[1763614994882,0.4791,3052.4,3051.9,3.27662376]
[1763614995374,0.37551616,3052.3,3051.9,3.27662376]
[1763614995544,0.4771,3052.2,3051.9,3.27662376]
[1763614995944,0.4876,3052.0,3051.9,3.27662376]
[1763614996179,0.113,3052.4,3051.9,6.55327109]
[1763614996476,0.5901,3052.4,3051.9,3.27662376]
[1763614996680,0.4876,3052.0,3051.6,1.01799264]
[1763614996846,0.4876,3051.7,3051.5,4.18399991]
[1763614997045,0.1822,3051.9,3051.3,3.27721725]
[1763614997250,0.4771,3052.2,3051.3,13.78179362]
[1763614997459,0.405504,3052.3,3051.4,1.20169264]
[1763614997688,0.111,3052.2,3051.4,1.20169264]
[1763614997985,0.53817533,3052.2,3051.4,1.20169264]
[1763614998280,1.01527533,3052.2,3051.4,1.20169264]
[1763614999176,1.01527533,3052.2,3051.5,6.55415368]
[1763614999377,0.4771,3052.1,3051.5,3.27707684]
[1763614999579,0.53817533,3052.2,3051.5,6.55415368]
[1763614999790,0.111,3052.1,3051.5,6.55415368]
[1763615000494,0.4771,3052.3,3051.6,3.94999309]
[1763615000789,0.111,3052.3,3051.7,0.90699264]
[1763615001176,0.111,3052.3,3051.8,6.5535094]
[1763615001696,0.002,3052.4,3051.8,6.5535094]
[1763615001697,0.002,3052.4,3052.2,0.3935]
[1763615001989,0.002,3052.4,3052.3,0.2947]
[1763615002567,0.002,3052.4,3051.9,1.01799264]
[1763615002772,0.002,3052.4,3052.1,1.00579264]
[1763615003172,0.002,3052.4,3052.3,0.90699264]
[1763615003994,0.4896,3052.4,3052.3,0.90699264]
[1763615004157,0.002,3052.4,3052.3,0.90699264]
[1763615004894,0.002,3052.4,3052.3,5.55738573]
[1763615005093,0.002,3052.4,3052.3,5.92195342]
[1763615005399,0.002,3052.8,3052.5,0.90699264]
[1763615005595,0.002,3052.8,3052.7,4.24469309]
[1763615005899,0.002,3052.8,3052.7,4.35569309]
[1763615006194,0.002,3052.8,3052.7,4.65039309]
[1763615007496,0.002,3052.8,3052.7,7.92618173]
[1763615007699,0.002,3052.8,3052.7,8.83317437]
[1763615008006,0.002,3052.8,3052.7,11.7133892]
[1763615010112,0.002,3053.1,3052.8,0.90699264]
[1763615010293,0.002,3053.1,3053.0,5.15168573]
[1763615010802,0.002,3053.1,3053.0,8.32660056]
[1763615011000,0.002,3053.1,3053.0,5.44638573]
[1763615011315,3.27293988,3055.4,3053.0,5.44638573]
[1763615011316,0.1954,3054.6,3053.2,0.05]
[1763615011596,0.6604,3054.6,3053.8,3.94999309]
[1763615011997,0.6604,3054.6,3053.9,6.5490029]
[1763615012506,0.6604,3054.6,3053.7,0.111]
[1763615012507,0.1954,3054.6,3053.7,0.111]
[1763615012803,0.4834,3053.9,3053.7,3.38568914]
[1763615013173,0.9484,3053.8,3053.6,3.27478684]
[1763615013367,0.4834,3053.7,3053.4,3.27503766]
[1763615013607,0.4834,3053.5,3053.4,3.27503766]
[1763615014110,0.465,3053.8,3053.4,3.27503766]
[1763615014608,0.465,3053.8,3053.4,6.55007532]
[1763615014776,0.465,3053.8,3053.4,3.27503766]
[1763615015721,0.465,3053.8,3053.4,6.55007532]
[1763615015923,0.465,3053.8,3053.4,3.27503766]
[1763615016120,0.4834,3053.5,3053.4,3.27503766]
[1763615016879,0.465,3053.8,3053.4,3.27503766]
[1763615017179,0.4834,3053.5,3053.4,3.27503766]
[1763615017822,0.465,3053.8,3053.4,6.55007532]
[1763615018420,0.465,3053.8,3053.4,10.50006841]
[1763615019023,0.1954,3053.9,3053.4,10.50006841]
[1763615019180,0.6865,3053.9,3053.4,10.50006841]
[1763615019377,0.1954,3053.9,3053.4,10.50006841]
[1763615019599,0.4911,3054.1,3053.7,3.94999309]
[1763615019807,0.4911,3054.4,3053.7,3.94999309]
[1763615020305,0.4911,3054.4,3053.8,6.54921736]
[1763615021103,0.405504,3054.7,3054.3,0.2947]
[1763615021282,0.1818,3053.9,3053.5,3.27492253]
[1763615021478,0.1818,3053.9,3053.1,0.0979]
[1763615021806,0.4911,3053.8,3053.3,3.94999309]
[1763615022114,0.002,3053.5,3053.3,3.94999309]
[1763615022310,0.002,3053.5,3053.4,3.27503766]
[1763615022902,0.002,3053.5,3053.4,3.56973766]
[1763615023615,0.002,3053.5,3053.4,3.60248803]
[1763615023793,0.002,3053.5,3053.4,3.56973766]
[1763615024218,0.002,3053.5,3053.4,3.60248803]
[1763615024530,0.002,3053.5,3053.4,3.86443766]
[1763615024953,0.002,3053.5,3053.4,3.56973766]
[1763615025360,0.002,3053.5,3053.4,3.27503766]
[1763615025850,0.002,3053.5,3053.4,3.56973766]
[1763615026156,0.002,3053.5,3053.4,4.4767303]
[1763615027156,0.002,3053.5,3053.4,8.42672339]
[1763615027709,0.002,3053.5,3053.4,4.4767303]
[1763615028007,0.002,3053.5,3053.4,8.42672339]
[1763615029710,0.9519,3053.5,3053.4,3.27503766]
[1763615029916,0.002,3053.5,3053.4,3.27503766]
[1763615030239,0.002,3053.5,3053.4,4.1820303]
[1763615031935,0.002,3053.5,3053.4,5.45986785]
[1763615032519,0.4608,3053.5,3053.4,5.16516785]
[1763615032723,0.002,3053.5,3053.4,5.45986785]
[1763615032969,1.357404,3053.5,3053.4,0.98313755]
[1763615033121,0.405504,3053.4,3053.0,0.001]
[1763615033319,3.73415947,3053.1,3053.0,0.001]
[1763615033538,4.13966347,3053.1,3053.0,0.001]
[1763615033736,4.63076347,3053.1,3053.0,0.001]
[1763615034743,0.2584,3052.8,3052.4,0.001]
[1763615034941,0.860904,3052.5,3052.4,0.001]
[1763615035343,1.352004,3052.5,3052.4,0.001]
[1763615035535,4.62800727,3052.5,3052.4,0.001]
[1763615035734,5.42949722,3052.5,3052.4,0.001]
[1763615036655,5.54049722,3052.5,3052.4,0.001]
[1763615038265,2.26449395,3052.5,3052.4,0.001]
[1763615038568,1.85898995,3052.5,3052.4,0.001]
[1763615038772,5.54049722,3052.5,3052.4,0.001]
[1763615039323,2.26449395,3052.5,3052.4,0.001]